[Event "Live Chess"]
[Site "Chess.com"]
[Date "2024.06.01"]
[Round "-"]
[White "Frankie_Badacsonyi"]
[Black "CheckThis4"]
[Result "0-1"]
[WhiteElo "2445"]
[BlackElo "2693"]
[TimeControl "300"]
[EndTime "10:11:54 PDT"]
[Termination "CheckThis4 won by resignation"]

1. d4 {[%clk 0:04:57.8]} 1... Nf6 {[%clk 0:04:55.2]} 2. c4 {[%clk 0:04:54.5]}
2... g6 {[%clk 0:04:53.6]} 3. Nc3 {[%clk 0:04:52.3]} 3... d5 {[%clk 0:04:52]} 4.
e3 {[%clk 0:04:50.1]} 4... Bg7 {[%clk 0:04:50.3]} 5. Qb3 {[%clk 0:04:49.1]} 5...
c6 {[%clk 0:04:38.6]} 6. Nf3 {[%clk 0:04:38.6]} 6... O-O {[%clk 0:04:36.8]} 7.
Bd2 {[%clk 0:04:36.7]} 7... dxc4 {[%clk 0:04:32.4]} 8. Bxc4 {[%clk 0:04:35.1]}
8... b5 {[%clk 0:04:29.8]} 9. Be2 {[%clk 0:04:32.2]} 9... a5 {[%clk 0:04:27.5]}
10. O-O {[%clk 0:04:16.8]} 10... a4 {[%clk 0:04:24.6]} 11. Qd1 {[%clk 0:04:15]}
11... Bf5 {[%clk 0:04:12.8]} 12. Rc1 {[%clk 0:04:08.2]} 12... Nbd7 {[%clk
0:04:05.9]} 13. Nh4 {[%clk 0:03:32.5]} 13... Be6 {[%clk 0:04:04.2]} 14. Bd3
{[%clk 0:03:28.9]} 14... Rc8 {[%clk 0:03:26.7]} 15. Nf3 {[%clk 0:03:14.5]} 15...
Bg4 {[%clk 0:03:17.3]} 16. h3 {[%clk 0:03:12.5]} 16... Bxf3 {[%clk 0:03:14.3]}
17. Qxf3 {[%clk 0:03:12.4]} 17... e5 {[%clk 0:03:09.1]} 18. Rfe1 {[%clk
0:02:09.9]} 18... Re8 {[%clk 0:02:53.1]} 19. Bf1 {[%clk 0:01:54.6]} 19... Nb6
{[%clk 0:02:39.7]} 20. dxe5 {[%clk 0:01:27.4]} 20... Rxe5 {[%clk 0:02:36.4]} 21.
Red1 {[%clk 0:01:23.4]} 21... Qe7 {[%clk 0:02:32.7]} 22. a3 {[%clk 0:01:06.2]}
22... h5 {[%clk 0:02:30.2]} 23. Na2 {[%clk 0:01:02.6]} 23... Nfd5 {[%clk
0:02:21.7]} 24. Nb4 {[%clk 0:00:45.7]} 24... Nxb4 {[%clk 0:02:10.2]} 25. Bxb4
{[%clk 0:00:45.6]} 25... c5 {[%clk 0:02:09.6]} 26. Bc3 {[%clk 0:00:40.6]} 26...
Rf5 {[%clk 0:02:08.3]} 27. Qe2 {[%clk 0:00:39.5]} 27... Nc4 {[%clk 0:02:00.8]}
28. Bxg7 {[%clk 0:00:32.9]} 28... Kxg7 {[%clk 0:02:00.7]} 29. Qc2 {[%clk
0:00:25.7]} 29... Nd6 {[%clk 0:01:55.8]} 30. b3 {[%clk 0:00:19.2]} 30... axb3
{[%clk 0:01:52]} 31. Qxb3 {[%clk 0:00:19.1]} 31... Ne4 {[%clk 0:01:43.3]} 32.
Qb2+ {[%clk 0:00:15.8]} 32... Qf6 {[%clk 0:01:41.7]} 33. Qxf6+ {[%clk 0:00:15]}
33... Rxf6 {[%clk 0:01:41.6]} 34. Rc2 {[%clk 0:00:14.6]} 34... c4 {[%clk
0:01:39.5]} 35. Rb1 {[%clk 0:00:13.2]} 35... Rc5 {[%clk 0:01:35.3]} 36. a4
{[%clk 0:00:12.1]} 36... bxa4 {[%clk 0:01:28.4]} 37. Rxc4 {[%clk 0:00:11.4]}
37... Rxc4 {[%clk 0:01:26.2]} 38. Bxc4 {[%clk 0:00:11.3]} 38... Nd2 {[%clk
0:01:25.4]} 39. Rc1 {[%clk 0:00:09.4]} 39... Rc6 {[%clk 0:01:22.2]} 0-1

[Event "Live Chess"]
[Site "Chess.com"]
[Date "2024.06.01"]
[Round "-"]
[White "TigerTank70"]
[Black "Delacorta"]
[Result "1-0"]
[WhiteElo "2172"]
[BlackElo "1448"]
[TimeControl "300"]
[EndTime "10:12:06 PDT"]
[Termination "TigerTank70 won by resignation"]

1. e4 {[%clk 0:04:58.5]} 1... e6 {[%clk 0:04:59]} 2. d4 {[%clk 0:04:57.5]} 2...
d5 {[%clk 0:04:58.2]} 3. e5 {[%clk 0:04:57.2]} 3... c5 {[%clk 0:04:57]} 4. c3
{[%clk 0:04:56.9]} 4... Nc6 {[%clk 0:04:56]} 5. Nf3 {[%clk 0:04:56.6]} 5... Qb6
{[%clk 0:04:54.5]} 6. Be2 {[%clk 0:04:52.2]} 6... Nge7 {[%clk 0:04:53.1]} 7.
dxc5 {[%clk 0:04:50.6]} 7... Qxc5 {[%clk 0:04:51.6]} 8. b4 {[%clk 0:04:48.8]}
8... Qb6 {[%clk 0:04:50.3]} 9. O-O {[%clk 0:04:48.5]} 9... Ng6 {[%clk
0:04:48.7]} 10. Be3 {[%clk 0:04:43.5]} 10... Qc7 {[%clk 0:04:46.9]} 11. Bd4
{[%clk 0:04:36.9]} 11... Bd7 {[%clk 0:04:44.9]} 12. Nbd2 {[%clk 0:04:29.3]}
12... O-O-O {[%clk 0:04:34.3]} 13. a4 {[%clk 0:04:24.9]} 13... h5 {[%clk
0:04:32.3]} 14. a5 {[%clk 0:04:22.7]} 14... a6 {[%clk 0:04:31.1]} 15. b5 {[%clk
0:04:21.2]} 15... Nxd4 {[%clk 0:04:28.6]} 16. Nxd4 {[%clk 0:04:16.5]} 16... Qxe5
{[%clk 0:04:24.5]} 17. bxa6 {[%clk 0:04:11.9]} 17... Bc5 {[%clk 0:04:01.5]} 18.
axb7+ {[%clk 0:03:58.6]} 18... Kb8 {[%clk 0:04:00.6]} 19. N2f3 {[%clk 0:03:50]}
19... Qe4 {[%clk 0:03:41.9]} 20. a6 {[%clk 0:03:42.7]} 20... Nf4 {[%clk
0:03:38.6]} 21. Re1 {[%clk 0:03:24.9]} 21... Bxd4 {[%clk 0:03:16.4]} 22. Qxd4
{[%clk 0:02:38]} 22... Qxd4 {[%clk 0:03:07.9]} 23. Nxd4 {[%clk 0:02:33.6]} 23...
Nxe2+ {[%clk 0:02:52.9]} 24. Rxe2 {[%clk 0:02:29.2]} 24... e5 {[%clk 0:02:42.9]}
25. Rxe5 {[%clk 0:02:27]} 25... Rhe8 {[%clk 0:02:36.8]} 26. Rxd5 {[%clk
0:02:24.6]} 1-0

[Event "Live Chess"]
[Site "Chess.com"]
[Date "2024.06.01"]
[Round "-"]
[White "DJ_Lambton"]
[Black "missedJariChance"]
[Result "1-0"]
[WhiteElo "1778"]
[BlackElo "1341"]
[TimeControl "300"]
[EndTime "10:12:10 PDT"]
[Termination "DJ_Lambton won by resignation"]

1. c4 {[%clk 0:04:57.6]} 1... e6 {[%clk 0:04:55.1]} 2. g3 {[%clk 0:04:56.4]}
2... Nf6 {[%clk 0:04:50.9]} 3. Bg2 {[%clk 0:04:55.4]} 3... c6 {[%clk 0:04:48.5]}
4. Nc3 {[%clk 0:04:53.7]} 4... d5 {[%clk 0:04:44.2]} 5. cxd5 {[%clk 0:04:53]}
5... cxd5 {[%clk 0:04:38.6]} 6. d4 {[%clk 0:04:52.3]} 6... Nc6 {[%clk 0:04:35]}
7. Bg5 {[%clk 0:04:50.9]} 7... Be7 {[%clk 0:04:33.3]} 8. e3 {[%clk 0:04:49.7]}
8... O-O {[%clk 0:04:29.7]} 9. Nge2 {[%clk 0:04:47.9]} 9... Qb6 {[%clk
0:04:24.2]} 10. Rb1 {[%clk 0:04:42.9]} 10... Nd7 {[%clk 0:04:06.2]} 11. Bxe7
{[%clk 0:04:41.1]} 11... Nxe7 {[%clk 0:04:04.6]} 12. O-O {[%clk 0:04:40.6]}
12... Ng6 {[%clk 0:04:00.8]} 13. Qc2 {[%clk 0:04:39.6]} 13... Nf6 {[%clk
0:03:53]} 14. Rfc1 {[%clk 0:04:38.4]} 14... Re8 {[%clk 0:03:46.9]} 15. Na4
{[%clk 0:04:35.6]} 15... Qd6 {[%clk 0:03:43.2]} 16. Nc5 {[%clk 0:04:33.6]} 16...
b6 {[%clk 0:03:35.9]} 17. Nd3 {[%clk 0:04:32.7]} 17... e5 {[%clk 0:03:24]} 18.
dxe5 {[%clk 0:04:28.7]} 18... Nxe5 {[%clk 0:03:20.6]} 19. Nxe5 {[%clk 0:04:27]}
19... Qxe5 {[%clk 0:03:09.3]} 20. Nf4 {[%clk 0:04:24.9]} 20... Bf5 {[%clk
0:03:03.9]} 21. e4 {[%clk 0:04:17]} 21... dxe4 {[%clk 0:02:54.5]} 22. Qc6 {[%clk
0:04:13.8]} 22... Rac8 {[%clk 0:02:35.5]} 23. Qb7 {[%clk 0:04:05.5]} 23... Rxc1+
{[%clk 0:02:32.1]} 24. Rxc1 {[%clk 0:04:04.7]} 24... h6 {[%clk 0:02:21.3]} 25.
Re1 {[%clk 0:04:03.5]} 25... Qxb2 {[%clk 0:02:15.5]} 26. Nd5 {[%clk 0:03:58.4]}
26... Nxd5 {[%clk 0:02:06.3]} 27. Qxd5 {[%clk 0:03:58.3]} 27... Bd7 {[%clk
0:01:57.7]} 28. Qxd7 {[%clk 0:03:54.8]} 28... Rf8 {[%clk 0:01:50.8]} 29. Rxe4
{[%clk 0:03:51.1]} 29... Qxa2 {[%clk 0:01:45.5]} 30. Qe7 {[%clk 0:03:49.7]}
30... Qb2 {[%clk 0:01:40]} 31. Re2 {[%clk 0:03:48]} 31... Qc1+ {[%clk
0:01:37.9]} 32. Re1 {[%clk 0:03:46.4]} 1-0

[Event "Live Chess"]
[Site "Chess.com"]
[Date "2024.06.01"]
[Round "-"]
[White "Enhard"]
[Black "Pedrada88"]
[Result "0-1"]
[WhiteElo "1424"]
[BlackElo "2552"]
[TimeControl "300"]
[EndTime "10:12:28 PDT"]
[Termination "Pedrada88 won by resignation"]

1. d4 {[%clk 0:04:55.8]} 1... Nf6 {[%clk 0:04:58.9]} 2. Bf4 {[%clk 0:04:55.2]}
2... b6 {[%clk 0:04:57.4]} 3. e3 {[%clk 0:04:54.2]} 3... Bb7 {[%clk 0:04:56.4]}
4. Nf3 {[%clk 0:04:53.7]} 4... e6 {[%clk 0:04:55.9]} 5. h3 {[%clk 0:04:52.8]}
5... Bd6 {[%clk 0:04:55.4]} 6. Be2 {[%clk 0:04:52.1]} 6... Bxf4 {[%clk
0:04:53.8]} 7. exf4 {[%clk 0:04:51.3]} 7... Nd5 {[%clk 0:04:53.1]} 8. g3 {[%clk
0:04:48.6]} 8... h5 {[%clk 0:04:52.1]} 9. h4 {[%clk 0:04:47.2]} 9... Qf6 {[%clk
0:04:50.5]} 10. c3 {[%clk 0:04:41.4]} 10... c5 {[%clk 0:04:48.1]} 11. O-O {[%clk
0:04:36.7]} 11... Nc6 {[%clk 0:04:45.6]} 12. Nbd2 {[%clk 0:04:23.2]} 12... cxd4
{[%clk 0:04:43.1]} 13. Ne4 {[%clk 0:04:21.8]} 13... Qe7 {[%clk 0:04:38.4]} 14.
Nxd4 {[%clk 0:04:17.5]} 14... O-O-O {[%clk 0:04:32]} 15. Bf3 {[%clk 0:04:03.5]}
15... Kb8 {[%clk 0:04:29.2]} 16. Nxc6+ {[%clk 0:03:57.7]} 16... dxc6 {[%clk
0:04:26.8]} 17. Qe2 {[%clk 0:03:55.5]} 17... c5 {[%clk 0:04:22.9]} 18. Rfd1
{[%clk 0:03:52.2]} 18... Nxf4 {[%clk 0:04:21.5]} 19. Rxd8+ {[%clk 0:03:40.7]}
19... Rxd8 {[%clk 0:04:19.4]} 20. gxf4 {[%clk 0:03:38.6]} 20... Qxh4 {[%clk
0:04:18.7]} 21. Ng3 {[%clk 0:03:37.8]} 21... Qxf4 {[%clk 0:04:12.9]} 22. Bxb7
{[%clk 0:03:35.4]} 22... Kxb7 {[%clk 0:04:12.8]} 23. Qe4+ {[%clk 0:03:05.8]}
23... Qxe4 {[%clk 0:04:11.5]} 24. Nxe4 {[%clk 0:03:04.8]} 24... f5 {[%clk
0:04:11.4]} 25. Ng5 {[%clk 0:03:02.3]} 25... e5 {[%clk 0:04:10.2]} 26. Ne6
{[%clk 0:03:00.4]} 26... Rd6 {[%clk 0:04:06.7]} 27. Ng5 {[%clk 0:02:50.2]} 27...
Rg6 {[%clk 0:04:05.2]} 28. f4 {[%clk 0:02:46.8]} 28... exf4 {[%clk 0:04:04.3]}
0-1

[Event "Live Chess"]
[Site "Chess.com"]
[Date "2024.06.01"]
[Round "-"]
[White "peteopeteo"]
[Black "seasidecastle27"]
[Result "0-1"]
[WhiteElo "1607"]
[BlackElo "1948"]
[TimeControl "300"]
[EndTime "10:12:34 PDT"]
[Termination "seasidecastle27 won by resignation"]

1. e4 {[%clk 0:04:59.6]} 1... e6 {[%clk 0:04:57]} 2. d4 {[%clk 0:04:58.7]} 2...
d5 {[%clk 0:04:56.1]} 3. exd5 {[%clk 0:04:58.6]} 3... exd5 {[%clk 0:04:54.8]} 4.
Nf3 {[%clk 0:04:58.5]} 4... Nf6 {[%clk 0:04:53.6]} 5. Bd3 {[%clk 0:04:57.5]}
5... Be7 {[%clk 0:04:52]} 6. O-O {[%clk 0:04:56.9]} 6... Bg4 {[%clk 0:04:50.6]}
7. Re1 {[%clk 0:04:54.3]} 7... Nbd7 {[%clk 0:04:49.6]} 8. Be3 {[%clk 0:04:50.5]}
8... O-O {[%clk 0:04:48.1]} 9. h3 {[%clk 0:04:50.1]} 9... Bh5 {[%clk 0:04:46.4]}
10. Be2 {[%clk 0:04:48.5]} 10... c6 {[%clk 0:04:44.8]} 11. c3 {[%clk 0:04:47.7]}
11... Re8 {[%clk 0:04:41.3]} 12. Nbd2 {[%clk 0:04:47.2]} 12... Qc7 {[%clk
0:04:39]} 13. Qc2 {[%clk 0:04:39.3]} 13... Bd6 {[%clk 0:04:32.7]} 14. Bd3 {[%clk
0:04:29.8]} 14... Re7 {[%clk 0:04:26]} 15. Ng5 {[%clk 0:04:22.8]} 15... Bg6
{[%clk 0:04:16.9]} 16. Bxg6 {[%clk 0:04:17.2]} 16... hxg6 {[%clk 0:04:14.3]} 17.
Ndf3 {[%clk 0:04:10.1]} 17... Rae8 {[%clk 0:04:11.4]} 18. Rad1 {[%clk
0:04:04.6]} 18... Ne4 {[%clk 0:04:05.1]} 19. Nxe4 {[%clk 0:04:00.4]} 19... Rxe4
{[%clk 0:04:01.6]} 20. Ng5 {[%clk 0:03:57.2]} 20... R4e7 {[%clk 0:03:54.8]} 21.
Bd2 {[%clk 0:03:45.9]} 21... Bf4 {[%clk 0:03:41.4]} 22. Nf3 {[%clk 0:03:38.2]}
22... Rxe1+ {[%clk 0:03:34.1]} 23. Rxe1 {[%clk 0:03:38.1]} 23... Rxe1+ {[%clk
0:03:28.9]} 24. Nxe1 {[%clk 0:03:33.5]} 24... Qd6 {[%clk 0:03:21.9]} 25. Nd3
{[%clk 0:03:29.4]} 25... Bxd2 {[%clk 0:03:01.7]} 26. Qxd2 {[%clk 0:03:29.3]}
26... Qe6 {[%clk 0:02:58.4]} 27. Qe3 {[%clk 0:03:27.1]} 27... Qxe3 {[%clk
0:02:50.1]} 28. fxe3 {[%clk 0:03:27]} 28... f6 {[%clk 0:02:48.6]} 29. Kf2 {[%clk
0:03:24.3]} 29... Kf7 {[%clk 0:02:43.1]} 30. g4 {[%clk 0:03:11.3]} 30... b6
{[%clk 0:02:39.4]} 31. b4 {[%clk 0:02:57.7]} 31... Nf8 {[%clk 0:02:36.9]} 32. a4
{[%clk 0:02:52.4]} 32... Ne6 {[%clk 0:02:33.8]} 33. h4 {[%clk 0:02:44]} 33... g5
{[%clk 0:02:27.4]} 34. h5 {[%clk 0:02:39.9]} 34... g6 {[%clk 0:02:06.1]} 35.
hxg6+ {[%clk 0:02:36.1]} 35... Kxg6 {[%clk 0:02:05.1]} 36. b5 {[%clk 0:02:30]}
36... cxb5 {[%clk 0:01:56.6]} 37. axb5 {[%clk 0:02:29.9]} 37... Nc7 {[%clk
0:01:54.2]} 38. Nb4 {[%clk 0:02:22.5]} 38... Nxb5 {[%clk 0:01:48]} 39. Nxd5
{[%clk 0:02:21.8]} 39... a5 {[%clk 0:01:34.3]} 40. c4 {[%clk 0:02:19]} 40... Nd6
{[%clk 0:01:20.3]} 41. c5 {[%clk 0:02:16.3]} 41... bxc5 {[%clk 0:01:15.3]} 42.
dxc5 {[%clk 0:02:16.2]} 42... Ne4+ {[%clk 0:01:14.2]} 43. Ke2 {[%clk 0:02:06.1]}
43... Nxc5 {[%clk 0:01:12.8]} 44. Kd2 {[%clk 0:01:57.9]} 44... f5 {[%clk
0:01:06.1]} 45. gxf5+ {[%clk 0:01:50.6]} 45... Kxf5 {[%clk 0:01:04.9]} 46. Kc3
{[%clk 0:01:47.1]} 46... Ke4 {[%clk 0:00:58.1]} 47. Kc4 {[%clk 0:01:45]} 47...
Nb7 {[%clk 0:00:51.3]} 48. Nf6+ {[%clk 0:01:28.9]} 48... Kxe3 {[%clk 0:00:49.2]}
49. Kb5 {[%clk 0:01:28.1]} 49... Kf4 {[%clk 0:00:44.7]} 50. Kb6 {[%clk
0:01:24.9]} 50... a4 {[%clk 0:00:42.2]} 51. Kxb7 {[%clk 0:01:16.1]} 51... a3
{[%clk 0:00:40.8]} 52. Nd5+ {[%clk 0:01:15.3]} 52... Kf3 {[%clk 0:00:39]} 53.
Nb4 {[%clk 0:00:57.2]} 53... g4 {[%clk 0:00:37.2]} 54. Nc2 {[%clk 0:00:54.8]}
54... a2 {[%clk 0:00:35.2]} 55. Kc6 {[%clk 0:00:53.2]} 55... g3 {[%clk
0:00:33.8]} 56. Nd4+ {[%clk 0:00:42.6]} 56... Kf2 {[%clk 0:00:32.1]} 57. Nb3
{[%clk 0:00:39.8]} 57... g2 {[%clk 0:00:30.9]} 58. Kd5 {[%clk 0:00:38.6]} 58...
g1=Q {[%clk 0:00:29.2]} 59. Na1 {[%clk 0:00:38.5]} 59... Qxa1 {[%clk 0:00:27.9]}
0-1

[Event "Live Chess"]
[Site "Chess.com"]
[Date "2024.06.01"]
[Round "-"]
[White "willc-h99"]
[Black "SirGerhard"]
[Result "0-1"]
[WhiteElo "2648"]
[BlackElo "2771"]
[TimeControl "300"]
[EndTime "10:12:49 PDT"]
[Termination "SirGerhard won by resignation"]

1. Nf3 {[%clk 0:04:58]} 1... d5 {[%clk 0:04:58.6]} 2. g3 {[%clk 0:04:57.2]} 2...
Nf6 {[%clk 0:04:58]} 3. Bg2 {[%clk 0:04:56.6]} 3... c6 {[%clk 0:04:56.9]} 4. O-O
{[%clk 0:04:55.5]} 4... Bg4 {[%clk 0:04:56.1]} 5. h3 {[%clk 0:04:53]} 5... Bxf3
{[%clk 0:04:52.5]} 6. Bxf3 {[%clk 0:04:51.9]} 6... Nbd7 {[%clk 0:04:52.4]} 7. d3
{[%clk 0:04:49.7]} 7... e6 {[%clk 0:04:51.4]} 8. Bg2 {[%clk 0:04:47.2]} 8... Bd6
{[%clk 0:04:50.5]} 9. c4 {[%clk 0:04:41.2]} 9... O-O {[%clk 0:04:49.2]} 10. Nc3
{[%clk 0:04:35.4]} 10... Re8 {[%clk 0:04:48.5]} 11. Bd2 {[%clk 0:04:23.7]} 11...
a6 {[%clk 0:04:44.4]} 12. Rc1 {[%clk 0:04:12.8]} 12... dxc4 {[%clk 0:04:42.3]}
13. dxc4 {[%clk 0:04:11.2]} 13... Qc7 {[%clk 0:04:41.7]} 14. Ne4 {[%clk
0:03:58.3]} 14... Nxe4 {[%clk 0:04:40]} 15. Bxe4 {[%clk 0:03:57.8]} 15... Nf6
{[%clk 0:04:36.9]} 16. Bg2 {[%clk 0:03:55.3]} 16... Rad8 {[%clk 0:04:35.3]} 17.
Qc2 {[%clk 0:03:52.9]} 17... Be5 {[%clk 0:04:26]} 18. e3 {[%clk 0:03:35]} 18...
h5 {[%clk 0:04:23]} 19. f4 {[%clk 0:03:26.6]} 19... Bd6 {[%clk 0:04:21.8]} 20.
Kh2 {[%clk 0:03:22.6]} 20... a5 {[%clk 0:04:17.8]} 21. Bc3 {[%clk 0:03:18.7]}
21... Bb4 {[%clk 0:04:06.7]} 22. Bxf6 {[%clk 0:03:17]} 22... gxf6 {[%clk
0:04:05.8]} 23. Rcd1 {[%clk 0:03:09.1]} 23... Qb6 {[%clk 0:04:03.9]} 24. Qe2
{[%clk 0:03:07.6]} 24... Kg7 {[%clk 0:04:00.6]} 25. Be4 {[%clk 0:02:32.7]} 25...
f5 {[%clk 0:03:52.3]} 26. Bf3 {[%clk 0:02:23.2]} 26... Bc5 {[%clk 0:03:45.3]}
27. e4 {[%clk 0:02:15.6]} 27... fxe4 {[%clk 0:03:41.1]} 28. Bxe4 {[%clk
0:02:09.8]} 28... Rxd1 {[%clk 0:03:37.2]} 29. Rxd1 {[%clk 0:02:07.9]} 29... Rd8
{[%clk 0:03:31.1]} 30. Rxd8 {[%clk 0:01:50.8]} 30... Qxd8 {[%clk 0:03:30.1]} 31.
Qxh5 {[%clk 0:01:46.8]} 31... Qd2+ {[%clk 0:03:28.9]} 32. Bg2 {[%clk 0:01:46.3]}
32... Bd4 {[%clk 0:03:25.1]} 33. Qg5+ {[%clk 0:01:44.4]} 33... Kf8 {[%clk
0:03:23.9]} 34. Qd8+ {[%clk 0:01:40.6]} 34... Kg7 {[%clk 0:03:23.3]} 35. Qg5+
{[%clk 0:01:39.9]} 35... Kh7 {[%clk 0:03:14.7]} 36. h4 {[%clk 0:01:39.1]} 36...
Bxb2 {[%clk 0:02:56]} 37. Kh3 {[%clk 0:01:35]} 37... Bg7 {[%clk 0:02:51.7]} 38.
Be4+ {[%clk 0:01:16.6]} 38... f5 {[%clk 0:02:50.5]} 39. Bg2 {[%clk 0:01:13.2]}
39... Qd7 {[%clk 0:02:42.6]} 40. h5 {[%clk 0:01:11.9]} 40... Qf7 {[%clk
0:02:41.9]} 41. g4 {[%clk 0:01:03.6]} 41... Bh6 {[%clk 0:02:32.3]} 42. Qg6+
{[%clk 0:00:54.4]} 42... Qxg6 {[%clk 0:02:31.4]} 43. hxg6+ {[%clk 0:00:54.3]}
43... Kxg6 {[%clk 0:02:31.2]} 44. g5 {[%clk 0:00:50.3]} 44... Bf8 {[%clk
0:02:30.4]} 45. Kg3 {[%clk 0:00:45.3]} 45... Bd6 {[%clk 0:02:29.5]} 46. Kf3
{[%clk 0:00:35.7]} 46... e5 {[%clk 0:02:26.6]} 47. fxe5 {[%clk 0:00:34.3]} 47...
Bxe5 {[%clk 0:02:26]} 48. Bf1 {[%clk 0:00:32.6]} 48... Kxg5 {[%clk 0:02:25]} 49.
Bd3 {[%clk 0:00:32.5]} 49... Kf6 {[%clk 0:02:23.6]} 50. a4 {[%clk 0:00:30.8]}
50... Bd6 {[%clk 0:02:20.4]} 51. Bc2 {[%clk 0:00:28.3]} 51... Ke5 {[%clk
0:02:19.6]} 52. Ke3 {[%clk 0:00:26.3]} 52... Bc5+ {[%clk 0:02:18.3]} 53. Kd3
{[%clk 0:00:25.6]} 53... Kf4 {[%clk 0:02:16.2]} 54. Bd1 {[%clk 0:00:25.5]} 54...
Kg3 {[%clk 0:02:14.8]} 55. Bh5 {[%clk 0:00:24]} 55... Kf2 {[%clk 0:02:11.9]} 56.
Bg6 {[%clk 0:00:20.5]} 56... f4 {[%clk 0:02:11]} 57. Bh5 {[%clk 0:00:20.1]}
57... Bd6 {[%clk 0:01:59.2]} 58. Bg4 {[%clk 0:00:15.5]} 58... Kg3 {[%clk
0:01:56.2]} 59. Bc8 {[%clk 0:00:14.7]} 59... f3 {[%clk 0:01:49]} 60. Bxb7 {[%clk
0:00:12]} 60... f2 {[%clk 0:01:48.2]} 61. Ke2 {[%clk 0:00:10.8]} 61... Kg2
{[%clk 0:01:47.7]} 62. Bxc6+ {[%clk 0:00:10]} 62... Kg1 {[%clk 0:01:47.2]} 0-1

[Event "Live Chess"]
[Site "Chess.com"]
[Date "2024.06.01"]
[Round "-"]
[White "DoctorMantisTobogganMD"]
[Black "Berdgross"]
[Result "1-0"]
[WhiteElo "2191"]
[BlackElo "594"]
[TimeControl "300"]
[EndTime "10:12:49 PDT"]
[Termination "DoctorMantisTobogganMD won by checkmate"]

1. e4 {[%clk 0:04:59.3]} 1... e5 {[%clk 0:04:56.9]} 2. Bc4 {[%clk 0:04:57.9]}
2... d6 {[%clk 0:04:56.3]} 3. Nc3 {[%clk 0:04:56.4]} 3... Nf6 {[%clk 0:04:55.5]}
4. Nge2 {[%clk 0:04:55.5]} 4... Nc6 {[%clk 0:04:54]} 5. O-O {[%clk 0:04:54.5]}
5... h6 {[%clk 0:04:52.7]} 6. d3 {[%clk 0:04:53.8]} 6... Bg4 {[%clk 0:04:49.4]}
7. f3 {[%clk 0:04:52.9]} 7... Be6 {[%clk 0:04:48.2]} 8. Bb5 {[%clk 0:04:51.8]}
8... Bd7 {[%clk 0:04:44.6]} 9. f4 {[%clk 0:04:50.9]} 9... exf4 {[%clk
0:04:43.2]} 10. Nxf4 {[%clk 0:04:49.5]} 10... Bg4 {[%clk 0:04:39.3]} 11. Qe1
{[%clk 0:04:47.8]} 11... a6 {[%clk 0:04:33.1]} 12. Ba4 {[%clk 0:04:46.6]} 12...
b5 {[%clk 0:04:31.4]} 13. Bb3 {[%clk 0:04:43.2]} 13... Nd4 {[%clk 0:04:27.8]}
14. h3 {[%clk 0:04:41.2]} 14... Be6 {[%clk 0:04:20.8]} 15. Nxe6 {[%clk
0:04:35.5]} 15... fxe6 {[%clk 0:04:19.3]} 16. Qf2 {[%clk 0:04:34.8]} 16... Nxb3
{[%clk 0:04:14]} 17. axb3 {[%clk 0:04:34.7]} 17... d5 {[%clk 0:04:09.2]} 18. e5
{[%clk 0:04:33.4]} 18... Nd7 {[%clk 0:04:05.2]} 19. Qf7# {[%clk 0:04:31.6]} 1-0

[Event "Live Chess"]
[Site "Chess.com"]
[Date "2024.06.01"]
[Round "-"]
[White "Ninifu"]
[Black "Duke_of_Bebington"]
[Result "1/2-1/2"]
[WhiteElo "2045"]
[BlackElo "1612"]
[TimeControl "300"]
[EndTime "10:12:58 PDT"]
[Termination "Game drawn by agreement"]

1. d4 {[%clk 0:04:55.6]} 1... d5 {[%clk 0:04:58.8]} 2. e4 {[%clk 0:04:54.5]}
2... dxe4 {[%clk 0:04:54.8]} 3. Nc3 {[%clk 0:04:53.8]} 3... Nf6 {[%clk
0:04:52.9]} 4. f3 {[%clk 0:04:53.2]} 4... exf3 {[%clk 0:04:51.3]} 5. Nxf3 {[%clk
0:04:52.7]} 5... Bg4 {[%clk 0:04:47.1]} 6. h3 {[%clk 0:04:51.5]} 6... Bxf3
{[%clk 0:04:45.7]} 7. Qxf3 {[%clk 0:04:50.7]} 7... Nc6 {[%clk 0:04:44.6]} 8. Be3
{[%clk 0:04:30.4]} 8... e6 {[%clk 0:04:43.1]} 9. O-O-O {[%clk 0:04:29.2]} 9...
Bb4 {[%clk 0:04:39.2]} 10. Bb5 {[%clk 0:04:25.9]} 10... Qd6 {[%clk 0:04:28.5]}
11. Ne4 {[%clk 0:04:17]} 11... Nxe4 {[%clk 0:04:24.1]} 12. Qxe4 {[%clk
0:04:16.3]} 12... O-O {[%clk 0:04:17.5]} 13. Bd3 {[%clk 0:04:07.4]} 13... g6
{[%clk 0:04:16.1]} 14. c3 {[%clk 0:04:01.9]} 14... Ba5 {[%clk 0:04:13.6]} 15. h4
{[%clk 0:03:46.1]} 15... Ne7 {[%clk 0:04:10.9]} 16. h5 {[%clk 0:03:40]} 16...
Nf5 {[%clk 0:04:07.6]} 17. hxg6 {[%clk 0:03:32.1]} 17... fxg6 {[%clk 0:04:02.7]}
18. Bf4 {[%clk 0:03:21.4]} 18... Qc6 {[%clk 0:03:53.9]} 19. Qxc6 {[%clk
0:03:09.9]} 19... bxc6 {[%clk 0:03:52.5]} 20. Be5 {[%clk 0:03:09.4]} 20... Bb6
{[%clk 0:03:40.5]} 21. Bc4 {[%clk 0:03:02.6]} 21... Rae8 {[%clk 0:03:37.6]} 22.
g4 {[%clk 0:02:57.5]} 22... Ne3 {[%clk 0:03:33.9]} 23. Rxh7 {[%clk 0:02:37.3]}
23... Nxd1 {[%clk 0:02:50.4]} 1/2-1/2

[Event "Live Chess"]
[Site "Chess.com"]
[Date "2024.06.01"]
[Round "-"]
[White "PureDashingOctopus"]
[Black "bill77678"]
[Result "1-0"]
[WhiteElo "2221"]
[BlackElo "1818"]
[TimeControl "300"]
[EndTime "10:13:12 PDT"]
[Termination "PureDashingOctopus won by resignation"]

1. e4 {[%clk 0:04:58.3]} 1... c6 {[%clk 0:04:58.8]} 2. Nc3 {[%clk 0:04:56.7]}
2... d5 {[%clk 0:04:57.9]} 3. Nf3 {[%clk 0:04:55.5]} 3... dxe4 {[%clk
0:04:57.2]} 4. Nxe4 {[%clk 0:04:54.5]} 4... Nf6 {[%clk 0:04:56.9]} 5. Qe2 {[%clk
0:04:53.6]} 5... Nxe4 {[%clk 0:04:55.5]} 6. Qxe4 {[%clk 0:04:52.1]} 6... Nd7
{[%clk 0:04:55.1]} 7. Bc4 {[%clk 0:04:50.7]} 7... Nf6 {[%clk 0:04:54.4]} 8. Ne5
{[%clk 0:04:49.5]} 8... e6 {[%clk 0:04:54.1]} 9. Qe2 {[%clk 0:04:48.8]} 9... b5
{[%clk 0:04:53.5]} 10. Bb3 {[%clk 0:04:46.5]} 10... Qc7 {[%clk 0:04:52.3]} 11.
O-O {[%clk 0:04:45.3]} 11... Bd6 {[%clk 0:04:50.1]} 12. d4 {[%clk 0:04:44.8]}
12... O-O {[%clk 0:04:47.8]} 13. Bg5 {[%clk 0:04:42.7]} 13... Bxe5 {[%clk
0:04:30.6]} 14. dxe5 {[%clk 0:04:40.5]} 14... Nd5 {[%clk 0:04:25.3]} 15. c4
{[%clk 0:04:36.5]} 15... bxc4 {[%clk 0:04:22.4]} 16. Bxc4 {[%clk 0:04:36.4]}
16... Qb6 {[%clk 0:04:09.8]} 17. Bd3 {[%clk 0:04:32.4]} 17... Qd4 {[%clk
0:03:36.6]} 18. Rad1 {[%clk 0:04:26.9]} 18... Nf4 {[%clk 0:03:12.3]} 19. Bxh7+
{[%clk 0:04:23.3]} 19... Kxh7 {[%clk 0:03:10.4]} 20. Qc2+ {[%clk 0:04:21.8]}
20... Nd3 {[%clk 0:02:54.4]} 21. Rxd3 {[%clk 0:04:08.7]} 21... Qe4 {[%clk
0:02:53.3]} 22. Rh3+ {[%clk 0:04:06.5]} 1-0